fUSD/lending_fUSD_20240923
["ID","MTS","AMOUNT","RATE_DAILY","PERIOD"]
[338981400,1727098263897,-500.0,0.00012999,2]
[338981401,1727098263906,-500.0,0.00012999,2]
[338981402,1727098263916,-500.0,0.00012999,2]
[338981403,1727098263926,-500.0,0.00012999,2]
[338981404,1727098263936,-500.0,0.00012999,2]
[338981405,1727098263946,-976.12369251,0.00012999,2]
[338981406,1727098263958,-763.12630749,0.00012999,2]
[338981407,1727098263968,-500.0,0.00012999,2]
[338981408,1727098263978,-1739.25,0.00012999,2]
[338981409,1727098263988,-500.0,0.00012999,2]
[338981410,1727098264002,-1739.25,0.00012999,2]
[338981411,1727098264012,-243.7,0.00012999,2]
[338981412,1727098264027,-1739.25,0.00012999,2]
[338981413,1727098264037,-1739.25,0.00012999,2]
[338981414,1727098264048,-1739.25,0.00012999,2]
[338981415,1727098264058,-1739.25,0.00012999,2]
[338981416,1727098264069,-372.25813101,0.00012999,2]
[338981417,1727098264081,-127.74186899,0.00012999,2]
[338981418,1727098264090,-376.72229524,0.00012999,2]
[338981419,1727098264103,-1362.52770476,0.00012999,2]
[338981420,1727098264112,-500.0,0.00012999,2]
[338981421,1727098264122,-1739.25,0.00012999,2]
[338981422,1727098264132,-500.0,0.00012999,2]
[338981423,1727098264142,-1739.25,0.00012999,2]
[338981424,1727098264152,-500.0,0.00012999,2]
[338981425,1727098264161,-1739.25,0.00012999,2]
[338981426,1727098264172,-500.0,0.00012999,2]
[338981427,1727098264182,-1739.25,0.00012999,2]
[338981428,1727098264192,-500.0,0.00012999,2]
[338981429,1727098264202,-79.1093952,0.00012999,2]
[338981430,1727098264214,-1470.87908501,0.00012999,2]
[338981431,1727098264227,-189.26151979,0.00012999,2]
[338981432,1727098264236,-500.0,0.00012999,2]
[338981433,1727098264256,-1739.25,0.00012999,2]
[338981434,1727098264266,-500.0,0.00012999,2]
[338981435,1727098264275,-1045.98848021,0.00012999,2]
[338981436,1727098264287,-449.59669731,0.00012999,2]
[338981437,1727098264299,-243.66482248,0.00012999,2]
[338981438,1727098264309,-150.46299865,0.00012999,2]
[338981439,1727098264325,-349.53700135,0.00012999,2]
[338981440,1727098264335,-1739.25,0.00012999,2]
[338981441,1727098264345,-476.21299865,0.00012999,2]
[338981442,1727098264358,-23.78700135,0.00012999,2]
[338981443,1727098264369,-500.0,0.00012999,2]
[338981444,1727098264379,-135.41299865,0.00012999,2]
[338981445,1727098264391,-590.62314607,0.00012999,2]
[338981446,1727098264405,-1013.21385528,0.00012999,2]
[338981447,1727098264416,-500.0,0.00012999,2]
[338981448,1727098264426,-1739.25,0.00012999,2]
[338981449,1727098264436,-500.0,0.00012999,2]
[338981450,1727098264446,-1650.87907952,0.00012999,2]
[338981451,1727098264459,-88.53480863,0.00012999,2]
[338981452,1727098264469,-813.61782455,0.00012999,2]
[338981453,1727098264481,-582.57217545,0.00012999,2]
[338981454,1727098264492,-500.0,0.00012999,2]
[338981455,1727098264505,-405.22557578,0.00012999,2]
[338981456,1727098264522,-150.0,0.00012997,2]
[338981457,1727098264532,-570.62291816,0.00012999,2]
[338981458,1727098264544,-420.34150606,0.00012999,2]
[338981459,1727098264554,-500.0,0.00012999,2]
[338981460,1727098264564,-1396.19,0.00012999,2]
[338981461,1727098264575,-500.0,0.00012999,2]
[338981462,1727098264586,-1396.19,0.00012999,2]
[338981463,1727098264596,-500.0,0.00012999,2]
[338981464,1727098264606,-500.0,0.00012999,2]
[338981465,1727098264617,-1396.19,0.00012999,2]
[338981466,1727098264627,-500.0,0.00012999,2]
[338981467,1727098264637,-500.0,0.00012999,2]
[338981468,1727098264648,-1396.19,0.00012999,2]
[338981469,1727098264658,-269.8,0.00012999,2]
[338981470,1727098264668,-731.47405757,0.00012999,2]
[338981471,1727098264681,-664.71594243,0.00012999,2]
[338981472,1727098264691,-61.50955801,0.00012999,2]
[338981473,1727098264703,-448.7075297,0.00012999,2]
[338981474,1727098264716,-885.97291229,0.00012999,2]
[338981475,1727098264726,-1396.19,0.00012999,2]
[338981476,1727098264737,-817.83708771,0.00012999,2]
[338981477,1727098264756,-578.35291229,0.00012999,2]
[338981478,1727098264766,-1396.19,0.00012999,2]
[338981479,1727098264777,-590.20822421,0.00012999,2]
[338981480,1727098264788,-585.41820824,0.00012999,2]
[338981481,1727098265118,-150.0,0.00012743,2]
[338981482,1727098265128,-150.0,0.00012752,2]
[338981483,1727098265138,-150.0,0.00012778,2]
[338981484,1727098265147,-138.209208,0.00012783,2]
[338981485,1727098265159,-11.790792,0.00012783,2]
[338981486,1727098265170,-150.0,0.00012785,2]
[338981487,1727098265179,-117.11069028,0.00012788,2]
[338981488,1727098265213,-32.88930972,0.00012788,2]
[338981489,1727098265223,-150.0,0.00012797,2]
[338981490,1727098265233,-150.0,0.00012802,2]
[338981491,1727098265243,-150.0,0.00012803,2]
[338981492,1727098265256,-150.0,0.00012803,2]
[338981493,1727098265267,-150.0,0.00012816,2]
[338981494,1727098265277,-150.0,0.00012818,2]
[338981495,1727098265286,-150.0,0.00012842,2]
[338981496,1727098265296,-150.0,0.00012845,2]
[338981497,1727098265306,-150.0,0.00012848,2]
[338981498,1727098265319,-150.0,0.00012861,2]
[338981499,1727098265329,-150.0,0.00012863,2]
[338981500,1727098265339,-150.0,0.00012864,2]
[338981501,1727098265349,-150.0,0.00012865,2]
[338981502,1727098265359,-150.0,0.00012871,2]
[338981503,1727098265371,-500.0,0.00012876,2]
[338981504,1727098265380,-1753.43,0.00012876,2]
[338981505,1727098265391,-150.0,0.00012878,2]
[338981506,1727098265402,-150.0,0.00012878,2]
[338981507,1727098265412,-150.0,0.00012881,2]
[338981508,1727098265421,-150.0,0.00012897,2]
[338981509,1727098265431,-500.0,0.00012897,2]
[338981510,1727098265442,-48.50723732,0.00012898,2]
[338981511,1727098265454,-451.49276268,0.00012898,2]
[338981512,1727098265464,-500.0,0.00012898,2]
[338981513,1727098265474,-150.0,0.00012903,2]
[338981514,1727098265484,-150.0,0.00012909,2]
[338981515,1727098265494,-150.0,0.00012942,2]
[338981516,1727098265506,-150.0,0.00012943,2]
[338981517,1727098265516,-150.0,0.00012947,2]
[338981518,1727098265526,-150.0,0.0001295,2]
[338981519,1727098265535,-150.0,0.0001295,2]
[338981520,1727098265545,-150.0,0.00012951,2]
[338981521,1727098265554,-150.0,0.00012955,2]
[338981522,1727098265564,-150.0,0.00012959,2]
[338981523,1727098265574,-150.0,0.00012962,2]
[338981524,1727098265584,-150.0,0.00012964,2]
[338981525,1727098265593,-150.0,0.00012965,2]
[338981526,1727098265603,-150.0,0.00012966,2]
[338981527,1727098265613,-150.0,0.00012968,2]
[338981528,1727098265623,-150.0,0.0001297,2]
[338981529,1727098265631,-150.0,0.00012972,2]
[338981530,1727098265641,-150.0,0.00012972,2]
[338981531,1727098265651,-150.0,0.00012973,2]
[338981532,1727098265663,-150.0,0.00012973,2]
[338981533,1727098265673,-150.0,0.00012974,2]
[338981534,1727098265683,-150.0,0.00012985,2]
[338981535,1727098265693,-500.0,0.00012998,2]
[338981536,1727098265703,-500.0,0.00012998,2]
[338981537,1727098265712,-220.56356755,0.00012999,2]
[338981538,1727098265723,-1396.27368073,0.00012999,2]
[338981539,1727098265733,-783.58580079,0.00012999,2]
[338981540,1727098265775,-150.0,0.00012741,2]
[338981541,1727098265785,-150.0,0.00012866,2]
[338981542,1727098265795,-150.0,0.00012889,2]
[338981543,1727098265805,-500.0,0.00012899,2]
[338981544,1727098265815,-1000.10419921,0.00012999,2]
[338981545,1727098266014,-44.39580079,0.00012999,2]
[338981546,1727098266038,-1739.29419921,0.00012999,2]
[338981547,1727098266048,-1783.69,0.00012999,2]
[338981548,1727098266058,-1783.69,0.00012999,2]
[338981549,1727098266068,-1783.69,0.00012999,2]
[338981550,1727098266078,-1783.69,0.00012999,2]
[338981551,1727098266087,-262.36643446,0.00012999,2]
[338981552,1727098266109,-150.0,0.00012788,2]
[338981553,1727098266118,-150.0,0.00012917,2]
[338981554,1727098266129,-237.63356554,0.00012999,2]
[338981555,1727098266138,-1783.69,0.00012999,2]
[338981556,1727098266148,-500.0,0.00012999,2]
[338981557,1727098266158,-1783.69,0.00012999,2]
[338981558,1727098266167,-500.0,0.00012999,2]
[338981559,1727098266177,-1783.69,0.00012999,2]
[338981560,1727098266186,-500.0,0.00012999,2]
[338981561,1727098266195,-1783.69,0.00012999,2]
[338981562,1727098266204,-500.0,0.00012999,2]
[338981563,1727098266213,-1783.69,0.00012999,2]
[338981564,1727098266222,-500.0,0.00012999,2]
[338981565,1727098266232,-1056.03913525,0.00012999,2]
[338981566,1727098266243,-727.65086475,0.00012999,2]
[338981567,1727098266256,-500.0,0.00012999,2]
[338981568,1727098266266,-1783.69,0.00012999,2]
[338981569,1727098266276,-500.0,0.00012999,2]
[338981570,1727098266286,-1783.69,0.00012999,2]
[338981571,1727098266295,-500.0,0.00012999,2]
[338981572,1727098266304,-1783.69,0.00012999,2]
[338981573,1727098266316,-827.03903425,0.00012999,2]
[338981574,1727098266329,-956.65096575,0.00012999,2]
[338981575,1727098266337,-381.7,0.00012999,2]
[338981576,1727098266347,-1783.69,0.00012999,2]
[338981577,1727098266356,-1783.69,0.00012999,2]
[338981578,1727098266367,-1783.69,0.00012999,2]
[338981579,1727098266376,-1783.69,0.00012999,2]
[338981580,1727098266386,-1364.08853425,0.00012999,2]
[338981581,1727098266397,-338.805,0.00012999,2]
[338981582,1727098266408,-80.79646575,0.00012999,2]
[338981583,1727098266418,-1783.71319874,0.00012999,2]
[338981584,1727098266427,-500.0,0.00012999,2]
[338981585,1727098266437,-385.00263131,0.00012999,2]
[338981586,1727098266447,-640.39,0.00012999,2]
[338981587,1727098266456,-640.39,0.00012999,2]
[338981588,1727098266466,-640.39,0.00012999,2]
[338981589,1727098266475,-640.39,0.00012999,2]
[338981590,1727098266484,-640.39,0.00012999,2]
[338981591,1727098266494,-640.39,0.00012999,2]
[338981592,1727098266506,-640.39,0.00012999,2]
[338981593,1727098266517,-640.39,0.00012999,2]
[338981594,1727098266526,-640.39,0.00012999,2]
[338981595,1727098266537,-640.39,0.00012999,2]
[338981596,1727098266546,-640.39,0.00012999,2]
[338981597,1727098266556,-640.39,0.00012999,2]
[338981598,1727098266566,-640.39,0.00012999,2]
[338981599,1727098266575,-640.39,0.00012999,2]
[338981600,1727098266585,-640.39,0.00012999,2]
[338981601,1727098266594,-500.0,0.00012999,2]
[338981602,1727098266604,-640.39,0.00012999,2]
[338981603,1727098266613,-495.10829566,0.00012999,2]
[338981604,1727098266622,-500.0,0.00012999,2]
[338981605,1727098266632,-640.39,0.00012999,2]
[338981606,1727098266641,-500.0,0.00012999,2]
[338981607,1727098266651,-640.39,0.00012999,2]
[338981608,1727098266660,-500.0,0.00012999,2]
[338981609,1727098266670,-640.61930207,0.00012999,2]
[338981610,1727098266679,-500.0,0.00012999,2]
[338981611,1727098266688,-500.0,0.00012999,2]
[338981612,1727098266698,-500.0,0.00012999,2]
[338981613,1727098266708,-533.40217738,0.00012999,2]
[338981614,1727098266717,-837.81,0.00012999,2]
[338981615,1727098266727,-837.81,0.00012999,2]
[338981616,1727098266736,-837.81,0.00012999,2]
[338981617,1727098266745,-837.81,0.00012999,2]
[338981618,1727098266756,-837.81,0.00012999,2]
[338981619,1727098266765,-837.81,0.00012999,2]
[338981620,1727098266775,-837.81,0.00012999,2]
[338981621,1727098266784,-2445.64340114,0.00013,2]
[338981622,1727098266795,-533.82,0.00013,2]
[338981623,1727098266822,-225.12918834,0.00012828,2]
[338981624,1727098266831,-500.0,0.00012899,2]
[338981625,1727098266840,-150.0,0.00012947,2]
[338981626,1727098266850,-492.92748201,0.00013,2]
[338981627,1727098267219,-150.0,0.00012753,2]
[338981628,1727098267228,-150.0,0.00012754,2]
[338981629,1727098267238,-150.0,0.00012756,2]
[338981630,1727098267247,-150.0,0.0001278,2]
[338981631,1727098267257,-150.0,0.00012791,2]
[338981632,1727098267266,-150.0,0.00012801,2]
[338981633,1727098267275,-150.0,0.00012861,2]
[338981634,1727098267284,-150.0,0.00012861,2]
[338981635,1727098267295,-1753.43,0.00012897,2]
[338981636,1727098267304,-1753.43,0.00012898,2]
[338981637,1727098267317,-500.0,0.00012898,2]
[338981638,1727098267326,-1753.43,0.00012899,2]
[338981639,1727098267336,-186.98507315,0.00012899,2]
[338981640,1727098267345,-150.0,0.00012912,2]
[338981641,1727098267354,-150.0,0.00012914,2]
[338981642,1727098267364,-150.0,0.0001296,2]
[338981643,1727098267373,-150.0,0.0001297,2]
[338981644,1727098267383,-150.0,0.0001298,2]
[338981645,1727098267393,-150.0,0.0001298,2]
[338981646,1727098267403,-500.0,0.00012995,2]
[338981647,1727098267412,-1753.43,0.00012995,2]
[338981648,1727098267421,-186.91765969,0.00012996,2]
[338981649,1727098267431,-150.0,0.00012996,2]
[338981650,1727098267440,-500.0,0.00012997,2]
[338981651,1727098267449,-1753.43,0.00012997,2]
[338981652,1727098267459,-500.0,0.00012998,2]
[338981653,1727098267468,-500.0,0.00012998,2]
[338981654,1727098267478,-500.0,0.00012998,2]
[338981655,1727098267488,-500.0,0.00012998,2]
[338981656,1727098267497,-1753.43,0.00012998,2]
[338981657,1727098267512,-500.0,0.00012998,2]
[338981658,1727098267521,-1753.43,0.00012998,2]
[338981659,1727098267530,-500.0,0.00012998,2]
[338981660,1727098267541,-1753.43,0.00012998,2]
[338981661,1727098267551,-1753.43,0.00012998,2]
[338981662,1727098267560,-500.0,0.00012998,2]
[338981663,1727098267569,-1753.43,0.00012998,2]
[338981664,1727098267579,-837.81,0.00012999,2]
[338981665,1727098267588,-837.81,0.00012999,2]
[338981666,1727098267597,-500.0,0.00012999,2]
[338981667,1727098267607,-837.81,0.00012999,2]
[338981668,1727098267618,-500.0,0.00012999,2]
[338981669,1727098267628,-837.81,0.00012999,2]
[338981670,1727098267637,-500.0,0.00012999,2]
[338981671,1727098267647,-837.89,0.00012999,2]
[338981672,1727098267657,-500.0,0.00012999,2]
[338981673,1727098267666,-500.0,0.00012999,2]
[338981674,1727098267676,-500.0,0.00012999,2]
[338981675,1727098267686,-500.0,0.00012999,2]
[338981676,1727098267696,-500.0,0.00012999,2]
[338981677,1727098267705,-40489.0770466,0.00013,2]
[338981678,1727098267731,-300.0,0.00012999,2]
[338981679,1727098267743,-200.0,0.00012999,2]
[338981680,1727098267754,-100.0,0.00013,2]
[338981681,1727098267765,-32731.68125302,0.00013,2]
[338981682,1727098267776,-5024.77761419,0.00013,2]
[338981683,1727098268069,-591.54369029,0.00012876,2]
[338981684,1727098268108,-150.0,0.00012744,2]
[338981685,1727098268117,-150.0,0.00012785,2]
[338981686,1727098268127,-43.68665496,0.00012876,2]
[338981687,1727098268138,-612.34305062,0.00012876,2]
[338981688,1727098268153,-125.87660413,0.00012876,2]
[338981689,1727098268163,-325.35748859,0.00012897,2]
[338981690,1727098268184,-150.0,0.00012813,2]
[338981691,1727098268193,-365.83635347,0.00012897,2]
[338981692,1727098268204,-670.56,0.00012897,2]
[338981693,1727098268216,-601.51615794,0.00012897,2]
[338981694,1727098268225,-1373.45,0.00012897,2]
[338981695,1727098268235,-310.88275969,0.00012898,2]
[338981696,1727098268257,-150.0,0.00012794,2]
[338981697,1727098268266,-167.2958752,0.00012898,2]
[338981698,1727098280771,500.0,9.35e-05,2]
[338981699,1727098380267,500.0,9.35e-05,2]
[338981700,1727098473944,500.0,9.35e-05,2]
[338981701,1727098677807,155.53,9.9e-05,2]
[338981702,1727098820045,423.89,0.000111,2]
[338981722,1727099238364,155.53,9.897e-05,2]
[338981767,1727099431391,-262.1,0.00011774,2]
[338981769,1727099431401,-500.0,0.00011774,2]
[338981770,1727099431411,-250.0,0.00011778,2]
[338981771,1727099431420,-237.68872132,0.00011788,2]
[338981773,1727099431434,-12.31127868,0.00011788,2]
[338981775,1727099431444,-739.86082729,0.00011805,2]
[338981777,1727099431456,-260.13917271,0.00011805,2]
[338981779,1727099431465,-168.52,0.00011816,2]
[338981780,1727099431474,-152.07,0.00011907,2]
[338981781,1727099431483,-500.0,0.0001209,2]
[338981782,1727099431494,-2489.11047238,0.00012338,2]
[338981783,1727099431506,-4450.90606909,0.00012338,2]
[338981784,1727099431516,-226.48412703,0.00012679,2]
[338981785,1727099431527,-3099.50928955,0.00012679,2]
[338981786,1727099431540,-2183.03071045,0.00012679,2]
[338981787,1727099431549,-528.84,0.00012679,2]
[338981788,1727099431558,-574.14,0.00012679,2]
[338981789,1727099431567,-150.0,0.00012679,2]
[338981790,1727099431576,-6233.49918139,0.0001268,2]
[338981791,1727099431598,-11340.96151861,0.0001268,2]
[338981792,1727099431609,-20727.6081,0.0001268,2]
[338981793,1727099431619,-500.0,0.0001268,2]
[338981794,1727099431628,-1000.0,0.0001268,2]
[338981795,1727099431638,-299.99,0.0001268,2]
[338981796,1727099431649,-499.99,0.0001268,2]
[338981797,1727099431659,-575.21,0.0001268,2]
[338981798,1727099431668,-126.11015999,0.00012731,2]
[338981799,1727099431681,-23.88984001,0.00012731,2]
[338981801,1727099431690,-150.0,0.00012733,2]
[338981803,1727099431700,-150.0,0.00012739,2]
[338981805,1727099431710,-171.0233313,0.0001274,2]
[338981807,1727099431719,-150.0,0.00012743,2]
[338981809,1727099431728,-150.0,0.00012749,2]
[338981811,1727099431739,-50.96228745,0.00012765,2]
[338981813,1727099431753,-99.03771255,0.00012765,2]
[338981815,1727099431762,-151.0,0.00012765,2]
[338981817,1727099431771,-150.0,0.00012769,2]
[338981819,1727099431780,-150.0,0.00012775,2]
[338981821,1727099431789,-172.30626755,0.00012776,2]
[338981823,1727099431798,-306.4460199,0.00012776,2]
[338981825,1727099431810,-1674.56555788,0.00012776,2]
[338981828,1727099431826,-588.36553849,0.00012776,2]
[338981829,1727099431838,-1454.17739704,0.00012776,2]
[338981830,1727099431849,-12232.77403482,0.00012776,2]
[338981831,1727099431858,-150.0,0.00012784,2]
[338981832,1727099431868,-150.0,0.00012786,2]
[338981833,1727099431878,-16256.32854804,0.0001279,2]
[338981834,1727099431887,-150.0,0.00012791,2]
[338981835,1727099431897,-172.30626749,0.00012794,2]
[338981836,1727099431906,-7500.0,0.00012794,2]
[338981837,1727099431916,-150.0,0.00012796,2]
[338981838,1727099431925,-325.35261186,0.00012796,2]
[338981839,1727099431935,-15733.23853779,0.00012799,2]
[338981840,1727099431946,-8754.14981293,0.00012799,2]
[338981841,1727099431957,-404.0,0.00012799,2]
[338981842,1727099431969,-406.46096392,0.00012799,2]
[338981843,1727099431980,-400.66483047,0.00012799,2]
[338981844,1727099431991,-4507.06363913,0.00012799,2]
[338981845,1727099432007,-3186.53480063,0.00012799,2]
[338981846,1727099432018,-6036.6456329,0.00012799,2]
[338981847,1727099432034,-555.249,0.00012799,2]
[338981850,1727099437575,-14193.5279083,0.00012799,2]
[338981851,1727099437588,-3854.48083031,0.00012799,2]
[338981852,1727099437598,-5629.51916969,0.00012804,2]
[338981853,1727099437738,-10626.80937835,0.00012804,2]
[338981854,1727099437750,-150.0,0.00012804,2]
[338981855,1727099437760,-150.0,0.00012805,2]
[338981856,1727099437770,-150.0,0.00012806,2]
[338981857,1727099437780,-150.0,0.00012806,2]
[338981858,1727099437789,-150.0,0.00012809,2]
[338981859,1727099437798,-150.0,0.00012809,2]
[338981860,1727099437808,-150.0,0.0001281,2]
[338981861,1727099437817,-172.30626749,0.00012811,2]
[338981862,1727099437827,-150.0,0.00012813,2]
[338981863,1727099437837,-16256.32854804,0.00012817,2]
[338981864,1727099437848,-150.0,0.00012818,2]
[338981865,1727099437858,-150.0,0.00012818,2]
[338981866,1727099437868,-150.0,0.0001282,2]
[338981867,1727099437878,-150.0,0.00012824,2]
[338981868,1727099437890,-150.0,0.00012826,2]
[338981869,1727099437900,-150.0,0.00012827,2]
[338981870,1727099437909,-172.30626749,0.00012829,2]
[338981871,1727099437919,-150.0,0.0001283,2]
[338981872,1727099437928,-150.0,0.00012831,2]
[338981873,1727099437938,-16256.32854804,0.00012831,2]
[338981874,1727099437950,-150.0,0.00012833,2]
[338981875,1727099437959,-150.0,0.00012837,2]
[338981876,1727099437969,-150.0,0.00012838,2]
[338981877,1727099437978,-150.0,0.0001284,2]
[338981878,1727099437988,-150.0,0.00012843,2]
[338981879,1727099437997,-150.0,0.00012843,2]
[338981881,1727099438006,-150.0,0.00012844,2]
[338981883,1727099438015,-16256.32854804,0.00012845,2]
[338981885,1727099438025,-150.0,0.00012846,2]
[338981887,1727099438034,-172.30626749,0.00012847,2]
[338981889,1727099438043,-150.0,0.00012848,2]
[338981891,1727099438052,-413.15727776,0.00012852,2]
[338981893,1727099438061,-150.0,0.00012854,2]
[338981895,1727099438070,-150.0,0.00012857,2]
[338981897,1727099438079,-16256.32854804,0.00012859,2]
[338981899,1727099438089,-150.0,0.00012859,2]
[338981901,1727099438097,-150.0,0.00012859,2]
[338981903,1727099438107,-150.0,0.00012859,2]
[338981905,1727099438116,-150.0,0.00012859,2]
[338981907,1727099438125,-150.0,0.0001286,2]
[338981909,1727099438134,-150.0,0.00012864,2]
[338981911,1727099438143,-172.30626749,0.00012865,2]
[338981913,1727099438152,-150.0,0.00012871,2]
[338981915,1727099438162,-16256.32854804,0.00012872,2]
[338981917,1727099438172,-160.0,0.00012873,2]
[338981919,1727099438181,-160.57643251,0.00012873,2]
[338981921,1727099438190,-540.0837872,0.00012873,2]
[338981923,1727099438202,-500.0,0.00012873,2]
[338981925,1727099438211,-400.38227572,0.00012873,2]
[338981927,1727099438221,-500.0,0.00012873,2]
[338981929,1727099438230,-500.0,0.00012876,2]
[338981931,1727099438239,-501.19,0.00012876,2]
[338981933,1727099438248,-512.81,0.00012876,2]
[338981935,1727099438258,-543.82637534,0.00012876,2]
[338981937,1727099438267,-500.0,0.00012876,2]
[338981938,1727099438276,-500.0,0.00012876,2]
[338981940,1727099438286,-500.0,0.00012876,2]
[338981941,1727099438295,-500.0,0.00012876,2]
[338981943,1727099438304,-500.0,0.00012876,2]
[338981944,1727099438314,-500.0,0.00012876,2]
[338981946,1727099438323,-500.0,0.00012876,2]
[338981947,1727099438333,-500.0,0.00012876,2]
[338981949,1727099438343,-500.0,0.00012876,2]
[338981950,1727099438354,-500.0,0.00012876,2]
[338981952,1727099438364,-500.0,0.00012876,2]
[338981953,1727099438375,-500.0,0.00012876,2]
[338981955,1727099438386,-500.0,0.00012876,2]
[338981956,1727099438396,-500.0,0.00012876,2]
[338981958,1727099438406,-500.0,0.00012876,2]
[338981960,1727099438415,-500.0,0.00012876,2]
[338981961,1727099438424,-500.0,0.00012876,2]
[338981962,1727099438433,-299.64,0.00012876,2]
[338981964,1727099438442,-500.0,0.00012876,2]
[338981965,1727099438454,-500.0,0.00012876,2]
[338981967,1727099438463,-500.0,0.00012876,2]
[338981968,1727099438473,-500.0,0.00012876,2]
[338981970,1727099438482,-500.0,0.00012876,2]
[338981971,1727099438492,-500.0,0.00012876,2]
[338981973,1727099438503,-500.0,0.00012876,2]
[338981975,1727099438514,-500.0,0.00012876,2]
[338981977,1727099438524,-500.0,0.00012876,2]
[338981978,1727099438535,-500.0,0.00012876,2]
[338981980,1727099438546,-500.0,0.00012876,2]
[338981982,1727099438556,-500.0,0.00012876,2]
[338981983,1727099438566,-500.0,0.00012876,2]
[338981985,1727099438575,-500.0,0.00012876,2]
[338981987,1727099438584,-500.0,0.00012876,2]
[338981988,1727099438594,-500.0,0.00012876,2]
[338981990,1727099438602,-500.0,0.00012876,2]
[338981991,1727099438612,-400.41,0.00012876,2]
[338981993,1727099438621,-500.0,0.00012876,2]
[338981995,1727099438630,-500.0,0.00012876,2]
[338981996,1727099438640,-500.0,0.00012876,2]
[338981998,1727099438650,-500.0,0.00012876,2]
[338982000,1727099438659,-500.0,0.00012876,2]
[338982001,1727099438668,-500.0,0.00012876,2]
[338982003,1727099438678,-500.0,0.00012876,2]
[338982005,1727099438687,-500.0,0.00012876,2]
[338982006,1727099438697,-500.0,0.00012876,2]
[338982007,1727099438714,-500.0,0.00012876,2]
[338982008,1727099438723,-500.0,0.00012876,2]
[338982009,1727099438732,-500.0,0.00012876,2]
[338982010,1727099438741,-500.0,0.00012876,2]
[338982011,1727099438752,-500.0,0.00012876,2]
[338982012,1727099438761,-500.0,0.00012876,2]
[338982013,1727099438771,-500.0,0.00012876,2]
[338982014,1727099438779,-500.0,0.00012876,2]
[338982015,1727099438789,-500.0,0.00012876,2]
[338982016,1727099438798,-500.0,0.00012876,2]
[338982017,1727099438807,-500.0,0.00012876,2]
[338982018,1727099438817,-500.0,0.00012876,2]
[338982019,1727099438828,-500.0,0.00012876,2]
[338982020,1727099438837,-500.0,0.00012876,2]
[338982021,1727099438850,-500.0,0.00012876,2]
[338982022,1727099438859,-500.0,0.00012876,2]
[338982023,1727099438869,-500.0,0.00012876,2]
[338982024,1727099438880,-500.0,0.00012876,2]
[338982025,1727099438890,-500.0,0.00012876,2]
[338982026,1727099438899,-500.0,0.00012876,2]
[338982027,1727099438909,-500.0,0.00012876,2]
[338982028,1727099438919,-500.0,0.00012876,2]
[338982029,1727099438930,-500.0,0.00012876,2]
[338982030,1727099438940,-500.0,0.00012876,2]
[338982031,1727099438951,-500.0,0.00012876,2]
[338982032,1727099438960,-500.0,0.00012876,2]
[338982033,1727099438970,-500.0,0.00012876,2]
[338982034,1727099438979,-500.0,0.00012876,2]
[338982035,1727099438988,-500.0,0.00012876,2]
[338982036,1727099438998,-500.0,0.00012876,2]
[338982037,1727099439008,-500.0,0.00012876,2]
[338982038,1727099439018,-500.0,0.00012876,2]